[Event "Late-Titled-Tuesday-Blitz-February-13-2024"]
[Site "Chess.com"]
[Date "2024.02.13"]
[Round "1"]
[White "cthulhuuu"]
[Black "MikaelyanArman"]
[Result "1-0"]
[WhiteElo "2451"]
[BlackElo "2816"]
[TimeControl "180+1"]
[EndTime "14:07:00 PST"]
[Termination "cthulhuuu won by resignation"]

1. e4 {[%clk 0:02:59.2]} 1... c5 {[%clk 0:02:59.6]} 2. Nf3 {[%clk 0:02:59.3]}
2... Nc6 {[%clk 0:02:58.8]} 3. g3 {[%clk 0:02:58.7]} 3... g6 {[%clk 0:02:58.6]}
4. Bg2 {[%clk 0:02:59.3]} 4... Bg7 {[%clk 0:02:59.3]} 5. O-O {[%clk 0:02:59.4]}
5... e6 {[%clk 0:02:59.8]} 6. d3 {[%clk 0:02:59.4]} 6... Nge7 {[%clk 0:02:59.4]}
7. Re1 {[%clk 0:02:58.6]} 7... O-O {[%clk 0:02:59.2]} 8. e5 {[%clk 0:02:59]}
8... d6 {[%clk 0:02:52.5]} 9. exd6 {[%clk 0:02:59.9]} 9... Nf5 {[%clk
0:02:52.9]} 10. Nc3 {[%clk 0:02:55.2]} 10... Nxd6 {[%clk 0:02:37.6]} 11. h4
{[%clk 0:02:54.9]} 11... h6 {[%clk 0:02:36.5]} 12. Be3 {[%clk 0:02:44]} 12...
Nd4 {[%clk 0:02:36.5]} 13. Qd2 {[%clk 0:02:38.3]} 13... N6f5 {[%clk 0:02:33.2]}
14. Bf4 {[%clk 0:02:38.3]} 14... Nxf3+ {[%clk 0:02:21.3]} 15. Bxf3 {[%clk
0:02:37.9]} 15... Nd4 {[%clk 0:02:09.7]} 16. Bg2 {[%clk 0:02:37.8]} 16... Kh7
{[%clk 0:02:10.1]} 17. Ne4 {[%clk 0:02:32.9]} 17... e5 {[%clk 0:01:52.5]} 18.
Be3 {[%clk 0:02:27.6]} 18... Qb6 {[%clk 0:01:29.8]} 19. c3 {[%clk 0:02:24.6]}
19... Ne6 {[%clk 0:01:29.8]} 20. b4 {[%clk 0:02:24.8]} 20... f5 {[%clk
0:01:24.9]} 21. Nxc5 {[%clk 0:02:21.7]} 21... f4 {[%clk 0:01:20.4]} 22. Nxe6
{[%clk 0:02:21.6]} 22... Qxe6 {[%clk 0:01:18.1]} 23. Bxf4 {[%clk 0:02:19.1]}
23... Bd7 {[%clk 0:01:08.7]} 24. d4 {[%clk 0:02:11.3]} 24... e4 {[%clk
0:00:37.6]} 25. Bxe4 {[%clk 0:02:02.2]} 25... Qf7 {[%clk 0:00:36.8]} 26. h5
{[%clk 0:01:57.9]} 26... Bf5 {[%clk 0:00:36.2]} 27. hxg6+ {[%clk 0:01:54.3]}
27... Bxg6 {[%clk 0:00:36.6]} 28. Bxg6+ {[%clk 0:01:35.5]} 28... Qxg6 {[%clk
0:00:37.5]} 29. Be5 {[%clk 0:01:36]} 29... Rf3 {[%clk 0:00:35.7]} 30. Bxg7
{[%clk 0:01:33.5]} 30... Kxg7 {[%clk 0:00:35.7]} 31. Re7+ {[%clk 0:01:32.6]}
31... Kh8 {[%clk 0:00:28.2]} 32. Rae1 {[%clk 0:01:13.6]} 32... Raf8 {[%clk
0:00:28.3]} 33. R7e6 {[%clk 0:01:14.2]} 33... R8f6 {[%clk 0:00:19.4]} 34. Rxf6
{[%clk 0:01:10.5]} 34... Qxf6 {[%clk 0:00:20.1]} 35. Qe2 {[%clk 0:01:08.1]}
35... Kg7 {[%clk 0:00:16.9]} 36. Qe7+ {[%clk 0:01:03.6]} 36... Qxe7 {[%clk
0:00:17.3]} 37. Rxe7+ {[%clk 0:01:01.6]} 37... Kf6 {[%clk 0:00:18.2]} 38. Rxb7
{[%clk 0:01:01.3]} 38... Rxc3 {[%clk 0:00:18.5]} 39. Rxa7 {[%clk 0:01:01.6]}
39... Rc4 {[%clk 0:00:19.1]} 40. b5 {[%clk 0:01:01.4]} 40... Rxd4 {[%clk
0:00:19.5]} 41. b6 {[%clk 0:01:01.7]} 41... Rb4 {[%clk 0:00:20.2]} 42. b7 {[%clk
0:00:55.6]} 42... h5 {[%clk 0:00:20.4]} 43. a4 {[%clk 0:00:54.9]} 43... h4
{[%clk 0:00:20.1]} 44. gxh4 {[%clk 0:00:55]} 44... Kf5 {[%clk 0:00:20.7]} 45. a5
{[%clk 0:00:52.8]} 45... Kg4 {[%clk 0:00:21.3]} 46. Kg2 {[%clk 0:00:52.5]} 46...
Rxb7 {[%clk 0:00:15.3]} 47. Rxb7 {[%clk 0:00:52.2]} 1-0

[Event "Late-Titled-Tuesday-Blitz-February-13-2024"]
[Site "Chess.com"]
[Date "2024.02.13"]
[Round "1"]
[White "Njal28"]
[Black "Bryanl106"]
[Result "0-1"]
[WhiteElo "2989"]
[BlackElo "2524"]
[TimeControl "180+1"]
[EndTime "14:07:01 PST"]
[Termination "Bryanl106 won on time"]

1. d4 {[%clk 0:03:00.9]} 1... Nf6 {[%clk 0:02:59.4]} 2. c4 {[%clk 0:02:59.6]}
2... g6 {[%clk 0:02:56.4]} 3. Nc3 {[%clk 0:02:59.6]} 3... Bg7 {[%clk 0:02:57.3]}
4. e4 {[%clk 0:02:59.3]} 4... d6 {[%clk 0:02:58.1]} 5. Be2 {[%clk 0:02:56.7]}
5... O-O {[%clk 0:02:55.9]} 6. Nf3 {[%clk 0:02:56.3]} 6... e5 {[%clk 0:02:55.7]}
7. d5 {[%clk 0:02:56.4]} 7... a5 {[%clk 0:02:55.1]} 8. Bg5 {[%clk 0:02:53]} 8...
h6 {[%clk 0:02:54.4]} 9. Be3 {[%clk 0:02:50]} 9... Ng4 {[%clk 0:02:53]} 10. Bd2
{[%clk 0:02:48.5]} 10... f5 {[%clk 0:02:51.1]} 11. exf5 {[%clk 0:02:46.6]} 11...
gxf5 {[%clk 0:02:50.5]} 12. h3 {[%clk 0:02:47.3]} 12... Nf6 {[%clk 0:02:50.5]}
13. g4 {[%clk 0:02:44.9]} 13... fxg4 {[%clk 0:02:46.6]} 14. hxg4 {[%clk
0:02:44.9]} 14... Nxg4 {[%clk 0:02:46.5]} 15. Rg1 {[%clk 0:02:22.6]} 15... Na6
{[%clk 0:02:29.7]} 16. Ne4 {[%clk 0:02:21.3]} 16... Nc5 {[%clk 0:02:26.9]} 17.
Nxc5 {[%clk 0:01:39.1]} 17... dxc5 {[%clk 0:02:27.8]} 18. Rg2 {[%clk 0:01:20]}
18... Qf6 {[%clk 0:02:16]} 19. Qb3 {[%clk 0:00:37.6]} 19... a4 {[%clk
0:01:59.4]} 20. Qc3 {[%clk 0:00:30.9]} 20... a3 {[%clk 0:01:48.4]} 21. Ng1
{[%clk 0:00:09.8]} 21... axb2 {[%clk 0:01:25.5]} 22. Qxb2 {[%clk 0:00:09.9]}
22... Nxf2 {[%clk 0:01:14.6]} 23. Be3 {[%clk 0:00:09.4]} 23... Ne4 {[%clk
0:01:10.7]} 24. Bd3 {[%clk 0:00:06.2]} 24... Ng5 {[%clk 0:00:59]} 25. Qe2 {[%clk
0:00:04.4]} 25... Bf5 {[%clk 0:00:57.9]} 26. Bxf5 {[%clk 0:00:04.6]} 26... Qxf5
{[%clk 0:00:58.8]} 27. Bxg5 {[%clk 0:00:04.5]} 27... hxg5 {[%clk 0:00:59.1]} 28.
Rd1 {[%clk 0:00:04.9]} 28... e4 {[%clk 0:00:57.4]} 29. Qg4 {[%clk 0:00:05.5]}
29... Bc3+ {[%clk 0:00:55.2]} 30. Ke2 {[%clk 0:00:05.4]} 30... Rxa2+ {[%clk
0:00:54.7]} 31. Ke3 {[%clk 0:00:05.8]} 31... Bd4+ {[%clk 0:00:55.2]} 32. Rxd4
{[%clk 0:00:06.1]} 32... cxd4+ {[%clk 0:00:55.3]} 33. Kxd4 {[%clk 0:00:07]}
33... Rxg2 {[%clk 0:00:53.5]} 34. Qxg2 {[%clk 0:00:07.9]} 34... Qf2+ {[%clk
0:00:53.3]} 35. Qxf2 {[%clk 0:00:07.4]} 35... Rxf2 {[%clk 0:00:54.2]} 36. Nh3
{[%clk 0:00:07.9]} 36... Rd2+ {[%clk 0:00:46.6]} 37. Kxe4 {[%clk 0:00:05.4]}
37... g4 {[%clk 0:00:46.3]} 38. Nf4 {[%clk 0:00:05.9]} 38... Kf7 {[%clk
0:00:43.4]} 39. c5 {[%clk 0:00:04.3]} 39... Ke7 {[%clk 0:00:42.5]} 40. Ng6+
{[%clk 0:00:03]} 40... Kd8 {[%clk 0:00:41.3]} 41. Ne5 {[%clk 0:00:03.3]} 41...
g3 {[%clk 0:00:39.8]} 42. Kf3 {[%clk 0:00:02.8]} 42... g2 {[%clk 0:00:38.8]} 0-1

[Event "Late-Titled-Tuesday-Blitz-February-13-2024"]
[Site "Chess.com"]
[Date "2024.02.13"]
[Round "1"]
[White "Sanyura"]
[Black "Hirna2005"]
[Result "1-0"]
[WhiteElo "2661"]
[BlackElo "2313"]
[TimeControl "180+1"]
[EndTime "14:07:03 PST"]
[Termination "Sanyura won by resignation"]

1. e4 {[%clk 0:02:37]} 1... g6 {[%clk 0:03:00.5]} 2. d4 {[%clk 0:02:11.5]} 2...
Bg7 {[%clk 0:03:01]} 3. Nf3 {[%clk 0:02:11.3]} 3... d6 {[%clk 0:03:01.2]} 4. Bc4
{[%clk 0:02:10.8]} 4... Nf6 {[%clk 0:03:00.7]} 5. Nbd2 {[%clk 0:02:09.4]} 5...
O-O {[%clk 0:02:59.9]} 6. O-O {[%clk 0:02:09]} 6... Nxe4 {[%clk 0:02:58.2]} 7.
Bxf7+ {[%clk 0:01:55.9]} 7... Rxf7 {[%clk 0:02:57.8]} 8. Nxe4 {[%clk 0:01:56.8]}
8... Nc6 {[%clk 0:02:54.5]} 9. h3 {[%clk 0:01:53.2]} 9... Bd7 {[%clk 0:02:34.9]}
10. c3 {[%clk 0:01:48.7]} 10... Qc8 {[%clk 0:02:30.6]} 11. Neg5 {[%clk
0:01:47.7]} 11... Rf8 {[%clk 0:02:29.9]} 12. Qb3+ {[%clk 0:01:47.2]} 12... e6
{[%clk 0:02:30.1]} 13. Re1 {[%clk 0:01:47.5]} 13... d5 {[%clk 0:02:28.8]} 14.
Nh2 {[%clk 0:01:30.9]} 14... h6 {[%clk 0:02:25.3]} 15. Ngf3 {[%clk 0:01:31.1]}
15... Kh7 {[%clk 0:02:24]} 16. Ng4 {[%clk 0:01:30]} 16... Na5 {[%clk 0:01:55.4]}
17. Qc2 {[%clk 0:01:28.9]} 17... c5 {[%clk 0:01:49.3]} 18. Nfe5 {[%clk
0:01:20.7]} 18... Be8 {[%clk 0:01:49.5]} 19. dxc5 {[%clk 0:01:10.3]} 19... Nc6
{[%clk 0:01:43.4]} 20. Nxc6 {[%clk 0:01:08.1]} 20... Qxc6 {[%clk 0:01:33.5]} 21.
Be3 {[%clk 0:01:08.2]} 21... e5 {[%clk 0:01:30.9]} 22. Rad1 {[%clk 0:01:07.3]}
22... Rd8 {[%clk 0:01:27.1]} 23. Qd2 {[%clk 0:00:58.3]} 23... h5 {[%clk
0:01:21.6]} 24. Bg5 {[%clk 0:00:58.1]} 24... hxg4 {[%clk 0:01:13.7]} 25. Bxd8
{[%clk 0:00:57.5]} 25... gxh3 {[%clk 0:01:11.8]} 26. Be7 {[%clk 0:00:55.6]}
26... Rf7 {[%clk 0:00:57.8]} 27. Bd6 {[%clk 0:00:54.3]} 27... d4 {[%clk
0:00:55]} 28. Qg5 {[%clk 0:00:53.9]} 28... Rf5 {[%clk 0:00:50.8]} 29. Qg3 {[%clk
0:00:49.3]} 29... hxg2 {[%clk 0:00:43.5]} 30. cxd4 {[%clk 0:00:43.7]} 30... exd4
{[%clk 0:00:36.3]} 31. Re7 {[%clk 0:00:27]} 31... Bf7 {[%clk 0:00:32.3]} 32.
Qxg2 {[%clk 0:00:23.2]} 32... Bd5 {[%clk 0:00:31.5]} 33. Qg4 {[%clk 0:00:18.7]}
33... Rh5 {[%clk 0:00:30.6]} 34. f3 {[%clk 0:00:16.7]} 34... Bxf3 {[%clk
0:00:28.5]} 35. Qxd4 {[%clk 0:00:17.3]} 35... Rh1+ {[%clk 0:00:26.7]} 36. Kf2
{[%clk 0:00:17.6]} 36... Rh2+ {[%clk 0:00:26.9]} 37. Bxh2 {[%clk 0:00:16]} 1-0

[Event "Late-Titled-Tuesday-Blitz-February-13-2024"]
[Site "Chess.com"]
[Date "2024.02.13"]
[Round "1"]
[White "ElephantChessGenius"]
[Black "ansko1999"]
[Result "0-1"]
[WhiteElo "2296"]
[BlackElo "2645"]
[TimeControl "180+1"]
[EndTime "14:07:03 PST"]
[Termination "ansko1999 won by resignation"]

1. e4 {[%clk 0:03:00.9]} 1... d6 {[%clk 0:02:55.7]} 2. d4 {[%clk 0:02:58.3]}
2... Nf6 {[%clk 0:02:55.5]} 3. Nc3 {[%clk 0:02:57]} 3... c6 {[%clk 0:02:55.5]}
4. Nf3 {[%clk 0:02:55.7]} 4... Nbd7 {[%clk 0:02:46.8]} 5. a4 {[%clk 0:02:55.3]}
5... e5 {[%clk 0:02:45.9]} 6. Bc4 {[%clk 0:02:51.1]} 6... Be7 {[%clk 0:02:42.8]}
7. O-O {[%clk 0:02:49.7]} 7... O-O {[%clk 0:02:42.6]} 8. h3 {[%clk 0:02:44.7]}
8... h6 {[%clk 0:02:38.8]} 9. Be3 {[%clk 0:02:38]} 9... Re8 {[%clk 0:02:33.7]}
10. Qe2 {[%clk 0:02:17.9]} 10... a5 {[%clk 0:02:27.9]} 11. Bb3 {[%clk
0:02:15.1]} 11... exd4 {[%clk 0:02:18]} 12. Nxd4 {[%clk 0:02:07.3]} 12... Nc5
{[%clk 0:02:17.2]} 13. f3 {[%clk 0:02:01.9]} 13... Bf8 {[%clk 0:02:12.5]} 14.
Bc4 {[%clk 0:01:58.4]} 14... Bd7 {[%clk 0:01:43.1]} 15. Rad1 {[%clk 0:01:52.9]}
15... Qc7 {[%clk 0:01:41.5]} 16. Bf4 {[%clk 0:01:50.4]} 16... Qb6 {[%clk
0:01:38.9]} 17. Kh1 {[%clk 0:01:40]} 17... d5 {[%clk 0:01:22.5]} 18. Bb3 {[%clk
0:01:35.2]} 18... dxe4 {[%clk 0:01:20.6]} 19. fxe4 {[%clk 0:01:30.9]} 19...
Nfxe4 {[%clk 0:01:19.7]} 20. Bxf7+ {[%clk 0:00:36.4]} 20... Kxf7 {[%clk
0:00:58.1]} 21. Bc7+ {[%clk 0:00:33.6]} 21... Kg6 {[%clk 0:00:50.5]} 22. Qf3
{[%clk 0:00:08.5]} 22... Qxc7 {[%clk 0:00:40.1]} 23. Qf7+ {[%clk 0:00:04.6]}
23... Kh7 {[%clk 0:00:40.3]} 24. Nxe4 {[%clk 0:00:04.2]} 24... Rxe4 {[%clk
0:00:31.2]} 25. Nf5 {[%clk 0:00:03.1]} 25... Qe5 {[%clk 0:00:19.6]} 26. Rf3
{[%clk 0:00:02.9]} 26... Bxf5 {[%clk 0:00:17.8]} 27. Rxf5 {[%clk 0:00:02.9]}
27... Re1+ {[%clk 0:00:18]} 28. Rxe1 {[%clk 0:00:02.7]} 28... Qxe1+ {[%clk
0:00:18.9]} 29. Kh2 {[%clk 0:00:03]} 29... Bd6+ {[%clk 0:00:19.4]} 30. Rf4
{[%clk 0:00:02.8]} 30... Bxf4+ {[%clk 0:00:18.7]} 31. Qxf4 {[%clk 0:00:03.2]}
31... Qe6 {[%clk 0:00:18]} 32. Qf3 {[%clk 0:00:03.1]} 32... Qg6 {[%clk
0:00:17.2]} 33. Qf4 {[%clk 0:00:03.3]} 33... Ne6 {[%clk 0:00:17.6]} 0-1

[Event "Late-Titled-Tuesday-Blitz-February-13-2024"]
[Site "Chess.com"]
[Date "2024.02.13"]
[Round "1"]
[White "dosto07"]
[Black "Hauptsache_Gambit"]
[Result "1/2-1/2"]
[WhiteElo "2533"]
[BlackElo "2038"]
[TimeControl "180+1"]
[EndTime "14:07:04 PST"]
[Termination "Game drawn by stalemate"]

1. e4 {[%clk 0:02:57.4]} 1... c5 {[%clk 0:02:58.7]} 2. Nf3 {[%clk 0:02:55.4]}
2... a6 {[%clk 0:02:58]} 3. c3 {[%clk 0:02:53.7]} 3... d5 {[%clk 0:02:44.8]} 4.
e5 {[%clk 0:02:42.8]} 4... Nc6 {[%clk 0:02:43.8]} 5. d4 {[%clk 0:02:42.7]} 5...
Bg4 {[%clk 0:02:42.9]} 6. Be3 {[%clk 0:02:39.6]} 6... e6 {[%clk 0:02:40.8]} 7.
Nbd2 {[%clk 0:02:38.2]} 7... Nge7 {[%clk 0:02:35.9]} 8. h3 {[%clk 0:02:37.2]}
8... Bh5 {[%clk 0:02:35.7]} 9. Bd3 {[%clk 0:02:31.6]} 9... Nf5 {[%clk 0:02:25]}
10. Bg5 {[%clk 0:02:20.1]} 10... Nfe7 {[%clk 0:02:15]} 11. g4 {[%clk 0:02:06.7]}
11... Bg6 {[%clk 0:02:14.3]} 12. Bxg6 {[%clk 0:02:05.6]} 12... hxg6 {[%clk
0:02:11.8]} 13. dxc5 {[%clk 0:02:05.3]} 13... Qc7 {[%clk 0:01:55.6]} 14. Qe2
{[%clk 0:02:03]} 14... f5 {[%clk 0:01:25.7]} 15. exf6 {[%clk 0:01:56.8]} 15...
gxf6 {[%clk 0:01:05.4]} 16. Bxf6 {[%clk 0:01:56.8]} 16... Rg8 {[%clk 0:00:55.6]}
17. Qxe6 {[%clk 0:01:56.5]} 17... Qd7 {[%clk 0:00:54.5]} 18. Ng5 {[%clk
0:01:46]} 18... Qxe6+ {[%clk 0:00:50.1]} 19. Nxe6 {[%clk 0:01:45.9]} 19... Kf7
{[%clk 0:00:49.5]} 20. Bxe7 {[%clk 0:01:32.9]} 20... Bxe7 {[%clk 0:00:41.6]} 21.
Nf4 {[%clk 0:01:26.6]} 21... Bxc5 {[%clk 0:00:16.7]} 22. Nxd5 {[%clk 0:01:17.5]}
22... Rad8 {[%clk 0:00:16.7]} 23. Ne3 {[%clk 0:01:08.5]} 23... Rge8 {[%clk
0:00:16.7]} 24. Ke2 {[%clk 0:01:05.8]} 24... Ne5 {[%clk 0:00:15.2]} 25. Ne4
{[%clk 0:01:00]} 25... Ba7 {[%clk 0:00:14.4]} 26. Rad1 {[%clk 0:00:57.7]} 26...
Bxe3 {[%clk 0:00:07.6]} 27. fxe3 {[%clk 0:00:56.7]} 27... Nc4 {[%clk 0:00:07.5]}
28. Rhf1+ {[%clk 0:00:44.6]} 28... Ke6 {[%clk 0:00:04.3]} 29. Ng5+ {[%clk
0:00:41.7]} 29... Ke5 {[%clk 0:00:04.3]} 30. Nf7+ {[%clk 0:00:41.9]} 30... Ke4
{[%clk 0:00:01.5]} 31. Nxd8 {[%clk 0:00:42.8]} 31... Re7 {[%clk 0:00:01.6]} 32.
Rf4+ {[%clk 0:00:41.5]} 32... Ke5 {[%clk 0:00:01.9]} 33. Nf7+ {[%clk 0:00:41.9]}
33... Ke6 {[%clk 0:00:01.9]} 34. Ng5+ {[%clk 0:00:42]} 34... Ke5 {[%clk
0:00:01.8]} 35. Re4+ {[%clk 0:00:42.1]} 35... Kf6 {[%clk 0:00:01.2]} 36. Rxe7
{[%clk 0:00:42.3]} 36... Kxe7 {[%clk 0:00:02.1]} 37. Ne4 {[%clk 0:00:42]} 37...
Ne5 {[%clk 0:00:03]} 38. Rd5 {[%clk 0:00:41.2]} 38... Nc6 {[%clk 0:00:03.9]} 39.
Rc5 {[%clk 0:00:40.7]} 39... Ke6 {[%clk 0:00:04.8]} 40. Rxc6+ {[%clk 0:00:40.6]}
40... Ke5 {[%clk 0:00:05.7]} 41. Nc5 {[%clk 0:00:41.1]} 41... b6 {[%clk
0:00:06.6]} 42. Rxb6 {[%clk 0:00:40.6]} 42... g5 {[%clk 0:00:07.5]} 43. Rxa6
{[%clk 0:00:39.3]} 43... Kd5 {[%clk 0:00:08.4]} 44. Rg6 {[%clk 0:00:39.3]} 44...
Kxc5 {[%clk 0:00:09.3]} 45. Rxg5+ {[%clk 0:00:39.3]} 45... Kc4 {[%clk
0:00:09.4]} 46. h4 {[%clk 0:00:40.2]} 1/2-1/2

[Event "Late-Titled-Tuesday-Blitz-February-13-2024"]
[Site "Chess.com"]
[Date "2024.02.13"]
[Round "1"]
[White "sotochess"]
[Black "larsmandreassen"]
[Result "1-0"]
[WhiteElo "2586"]
[BlackElo "2235"]
[TimeControl "180+1"]
[EndTime "14:07:06 PST"]
[Termination "sotochess won on time"]

1. e4 {[%clk 0:02:59.9]} 1... d5 {[%clk 0:02:56.7]} 2. exd5 {[%clk 0:02:59.4]}
2... Nf6 {[%clk 0:02:57.1]} 3. c4 {[%clk 0:02:59.2]} 3... e6 {[%clk 0:02:56.7]}
4. dxe6 {[%clk 0:02:58.4]} 4... Bxe6 {[%clk 0:02:57.6]} 5. Be2 {[%clk
0:02:58.5]} 5... Qe7 {[%clk 0:02:57.3]} 6. b3 {[%clk 0:02:58.4]} 6... Nc6 {[%clk
0:02:55.9]} 7. Ba3 {[%clk 0:02:51.6]} 7... Qd7 {[%clk 0:02:52.6]} 8. Bxf8 {[%clk
0:02:51.2]} 8... Rxf8 {[%clk 0:02:52.9]} 9. Nf3 {[%clk 0:02:51.5]} 9... O-O-O
{[%clk 0:02:52.4]} 10. O-O {[%clk 0:02:51.2]} 10... Bg4 {[%clk 0:02:50.6]} 11.
h3 {[%clk 0:02:50.7]} 11... Bxf3 {[%clk 0:02:47.4]} 12. Bxf3 {[%clk 0:02:50.5]}
12... Nd4 {[%clk 0:02:48.3]} 13. Re1 {[%clk 0:02:48]} 13... Rfe8 {[%clk
0:02:44.7]} 14. Re3 {[%clk 0:02:47.6]} 14... c5 {[%clk 0:02:35.4]} 15. Kh1
{[%clk 0:02:28.5]} 15... g5 {[%clk 0:02:19.6]} 16. Nc3 {[%clk 0:02:23.1]} 16...
h5 {[%clk 0:02:11.3]} 17. Nd5 {[%clk 0:02:17.9]} 17... Nxd5 {[%clk 0:02:02.2]}
18. Bxd5 {[%clk 0:02:17.2]} 18... g4 {[%clk 0:01:55.3]} 19. h4 {[%clk
0:02:16.1]} 19... f5 {[%clk 0:01:52.7]} 20. g3 {[%clk 0:02:14.5]} 20... f4
{[%clk 0:01:47.3]} 21. Rxe8 {[%clk 0:01:56.7]} 21... Rxe8 {[%clk 0:01:44.7]} 22.
b4 {[%clk 0:01:52.4]} 22... fxg3 {[%clk 0:01:30.6]} 23. fxg3 {[%clk 0:01:50.4]}
23... Qd6 {[%clk 0:01:27.6]} 24. Qa4 {[%clk 0:01:31.6]} 24... Re2 {[%clk
0:00:29.5]} 25. Rf1 {[%clk 0:00:40.8]} 25... Nf3 {[%clk 0:00:22.1]} 26. Bxf3
{[%clk 0:00:38.5]} 26... gxf3 {[%clk 0:00:23]} 27. Rxf3 {[%clk 0:00:37.6]} 27...
Re1+ {[%clk 0:00:20.6]} 28. Kg2 {[%clk 0:00:37.5]} 28... Qxd2+ {[%clk
0:00:08.5]} 29. Rf2 {[%clk 0:00:37.4]} 29... Qd6 {[%clk 0:00:03.8]} 30. bxc5
{[%clk 0:00:28.4]} 30... Qxc5 {[%clk 0:00:02.8]} 31. Qb5 {[%clk 0:00:24]} 1-0

[Event "Late-Titled-Tuesday-Blitz-February-13-2024"]
[Site "Chess.com"]
[Date "2024.02.13"]
[Round "1"]
[White "AlexPapasimakopoulos"]
[Black "VladimirBugayev"]
[Result "1-0"]
[WhiteElo "2756"]
[BlackElo "2398"]
[TimeControl "180+1"]
[EndTime "14:07:08 PST"]
[Termination "AlexPapasimakopoulos won on time"]

1. d4 {[%clk 0:03:00.9]} 1... Nf6 {[%clk 0:02:59.5]} 2. c4 {[%clk 0:03:00.3]}
2... c5 {[%clk 0:02:59.9]} 3. d5 {[%clk 0:02:58.8]} 3... b5 {[%clk 0:03:00.5]}
4. Nf3 {[%clk 0:02:58.3]} 4... b4 {[%clk 0:02:56.5]} 5. b3 {[%clk 0:02:49.3]}
5... g6 {[%clk 0:02:53.3]} 6. Bb2 {[%clk 0:02:46.6]} 6... Bg7 {[%clk 0:02:53.4]}
7. Nbd2 {[%clk 0:02:43.9]} 7... O-O {[%clk 0:02:51.2]} 8. a3 {[%clk 0:02:38.8]}
8... bxa3 {[%clk 0:02:47.9]} 9. Rxa3 {[%clk 0:02:38.3]} 9... d6 {[%clk 0:02:45]}
10. e3 {[%clk 0:02:22.9]} 10... Na6 {[%clk 0:02:44.4]} 11. Bd3 {[%clk
0:02:22.1]} 11... Nb4 {[%clk 0:02:41.7]} 12. Bb1 {[%clk 0:02:22.1]} 12... Bg4
{[%clk 0:02:22.2]} 13. h3 {[%clk 0:02:06]} 13... Bd7 {[%clk 0:02:21.9]} 14. Qc1
{[%clk 0:02:04.4]} 14... a5 {[%clk 0:02:15.6]} 15. O-O {[%clk 0:02:04.1]} 15...
Qc8 {[%clk 0:02:07.2]} 16. Re1 {[%clk 0:02:01.1]} 16... e6 {[%clk 0:01:53]} 17.
dxe6 {[%clk 0:01:59.9]} 17... Bxe6 {[%clk 0:01:53.2]} 18. Ne4 {[%clk 0:01:54.6]}
18... Qd8 {[%clk 0:01:34.4]} 19. Rd1 {[%clk 0:01:46.7]} 19... Qe7 {[%clk
0:01:09.6]} 20. Nxd6 {[%clk 0:01:37.6]} 20... Rfd8 {[%clk 0:01:01.6]} 21. Nb5
{[%clk 0:01:34.2]} 21... Rxd1+ {[%clk 0:00:56.9]} 22. Qxd1 {[%clk 0:01:35.1]}
22... a4 {[%clk 0:00:56.7]} 23. Rxa4 {[%clk 0:01:22]} 23... Rxa4 {[%clk
0:00:52.2]} 24. bxa4 {[%clk 0:01:22.9]} 24... Bxc4 {[%clk 0:00:52.1]} 25. Ne5
{[%clk 0:01:22.7]} 25... Bd5 {[%clk 0:00:35.5]} 26. Nd3 {[%clk 0:01:02.8]} 26...
c4 {[%clk 0:00:16]} 27. Nf4 {[%clk 0:00:53.5]} 27... Be4 {[%clk 0:00:12.9]} 28.
Ba3 {[%clk 0:00:51.8]} 28... c3 {[%clk 0:00:09.4]} 29. Nxc3 {[%clk 0:00:47.5]}
29... Bxb1 {[%clk 0:00:03.8]} 30. Qxb1 {[%clk 0:00:48.4]} 30... Nh5 {[%clk
0:00:04]} 31. Bxb4 {[%clk 0:00:46.4]} 31... Qb7 {[%clk 0:00:04.1]} 32. Nxh5
{[%clk 0:00:46]} 32... Bxc3 {[%clk 0:00:03.8]} 33. Nf4 {[%clk 0:00:41.4]} 33...
Qxb4 {[%clk 0:00:02.4]} 34. Qxb4 {[%clk 0:00:40.9]} 34... Bxb4 {[%clk
0:00:03.3]} 35. Nd3 {[%clk 0:00:38.6]} 35... Bc3 {[%clk 0:00:02.8]} 36. Kf1
{[%clk 0:00:33]} 36... Kf8 {[%clk 0:00:03.2]} 37. Ke2 {[%clk 0:00:33.3]} 37...
Ke7 {[%clk 0:00:03.8]} 38. Nf4 {[%clk 0:00:33.6]} 38... Kd6 {[%clk 0:00:03.5]}
39. Kd3 {[%clk 0:00:34]} 39... Be1 {[%clk 0:00:02.7]} 40. f3 {[%clk 0:00:32.3]}
40... f5 {[%clk 0:00:01.8]} 41. Kc4 {[%clk 0:00:32.1]} 1-0

[Event "Late-Titled-Tuesday-Blitz-February-13-2024"]
[Site "Chess.com"]
[Date "2024.02.13"]
[Round "1"]
[White "Cristi_Coca"]
[Black "Korchmar_Vasiliy"]
[Result "0-1"]
[WhiteElo "2390"]
[BlackElo "2736"]
[TimeControl "180+1"]
[EndTime "14:07:09 PST"]
[Termination "Korchmar_Vasiliy won by resignation"]

1. e4 {[%clk 0:02:58.3]} 1... c5 {[%clk 0:03:00.3]} 2. c3 {[%clk 0:02:51.7]}
2... d5 {[%clk 0:02:59.9]} 3. exd5 {[%clk 0:02:52.6]} 3... Nf6 {[%clk 0:03:00]}
4. Bb5+ {[%clk 0:02:50.9]} 4... Nbd7 {[%clk 0:02:58.8]} 5. c4 {[%clk 0:02:47.3]}
5... a6 {[%clk 0:02:53.5]} 6. Ba4 {[%clk 0:02:47.3]} 6... b5 {[%clk 0:02:53.6]}
7. cxb5 {[%clk 0:02:45.7]} 7... Nxd5 {[%clk 0:02:52.9]} 8. Nf3 {[%clk
0:02:40.1]} 8... N7b6 {[%clk 0:02:42]} 9. bxa6+ {[%clk 0:02:37.9]} 9... Nxa4
{[%clk 0:02:41.1]} 10. Qxa4+ {[%clk 0:02:38.8]} 10... Bd7 {[%clk 0:02:35.8]} 11.
Qc4 {[%clk 0:02:33.1]} 11... e6 {[%clk 0:02:22.4]} 12. Nc3 {[%clk 0:02:24.4]}
12... Nb6 {[%clk 0:02:06.5]} 13. Qe2 {[%clk 0:02:10.1]} 13... Bd6 {[%clk
0:02:05.6]} 14. O-O {[%clk 0:02:05.7]} 14... O-O {[%clk 0:02:05.6]} 15. d4
{[%clk 0:01:57.3]} 15... cxd4 {[%clk 0:02:01.9]} 16. Nxd4 {[%clk 0:01:56.1]}
16... Qh4 {[%clk 0:01:46.5]} 17. Nf3 {[%clk 0:01:53.2]} 17... Qh5 {[%clk
0:01:46.8]} 18. Be3 {[%clk 0:01:39.8]} 18... Bc6 {[%clk 0:01:37.5]} 19. h3
{[%clk 0:01:12.3]} 19... Nd5 {[%clk 0:01:36.7]} 20. Nxd5 {[%clk 0:01:10.3]}
20... Bxd5 {[%clk 0:01:37.6]} 21. Nd4 {[%clk 0:00:57.9]} 21... Qe5 {[%clk
0:01:37.6]} 22. f4 {[%clk 0:00:50.6]} 22... Qe4 {[%clk 0:01:36.5]} 23. Rf3
{[%clk 0:00:40.4]} 23... e5 {[%clk 0:01:11.6]} 24. Nb5 {[%clk 0:00:30.4]} 24...
Bb4 {[%clk 0:00:26.6]} 25. Nc3 {[%clk 0:00:16.2]} 25... Bxc3 {[%clk 0:00:24.6]}
26. bxc3 {[%clk 0:00:17.1]} 26... exf4 {[%clk 0:00:17.2]} 27. Rxf4 {[%clk
0:00:15.1]} 27... Qe6 {[%clk 0:00:17.3]} 28. Qf2 {[%clk 0:00:14.8]} 28... Rxa6
{[%clk 0:00:16.7]} 29. a3 {[%clk 0:00:11]} 29... h5 {[%clk 0:00:16.3]} 30. Bd4
{[%clk 0:00:10.4]} 30... Qg6 {[%clk 0:00:15.2]} 31. Bc5 {[%clk 0:00:06.3]} 31...
Re8 {[%clk 0:00:15.3]} 32. Bb4 {[%clk 0:00:03.5]} 32... Rae6 {[%clk 0:00:15.9]}
33. Re1 {[%clk 0:00:02.4]} 33... Rxe1+ {[%clk 0:00:16.2]} 0-1